Cogmind - Beta 16 @@@ ROGUE MODE // 2025.11.12 @ 15:54:52 Player: Patryk Z Result: Destroyed by G-34 Mercenary with Small Laser Performance ------------- Evolutions (0) 0 Regions Visited (1) 200 Robots Destroyed (9) 45 Value Destroyed (60) 60 Prototype IDs (0) 0 Alien Tech Used (0) 0 Bonus (0) 0 TOTAL SCORE: 305 Bonus ------- None Cogmind --------- Core Integrity 0/250 Matter 274/300 Energy 125/125 System Corruption 14% Temperature Cool (6) Movement Hovering (56) Location -10/Materials Parts ------- > --- POWER (1) -------- Light Ion Engine > --- PROPULSION (2) --- Improved Hover Unit Improved Hover Unit > --- UTILITY (2) ------ Sensor Array Signal Interpreter > --- WEAPON (2) ------- Mace Mace > --- INVENTORY (5) ---- Structural Scanner Improved Terrain Scanner ECM Suite Light Armor Plating Mining Laser Peak State ------------ > --- POWER ------------ Light Ion Engine > --- PROPULSION ------- Improved Hover Unit Improved Hover Unit > --- UTILITY ---------- Sensor Array Signal Interpreter > --- WEAPON ----------- Mace Mace > --- INVENTORY -------- Medium Matter Pod Structural Scanner Improved Terrain Scanner Seismic Detector Mining Laser [Rating: 11] Favorites ----------- Power Light Ion Engine Engine Light Ion Engine Propulsion Aluminum Leg Treads Light Treads Leg Aluminum Leg Wheel Wheel Hover Unit Hover Unit Utility Improved Terrain Scanner Device Improved Terrain Scanner Storage Small Storage Unit Processor Signal Interpreter Weapon EM Pulse Gun Energy Gun EM Pulse Gun Ballistic Gun Light Assault Rifle Special Weapon Mining Laser Impact Weapon Mace Build | -11 -10 ------- Run | Yrd Mat Slots Evolved . | . . Power . | . . Propulsion . | . . Utility . | . . Weapon . | . . Parts Attached 27 | 12 15 Power 6 | 3 3 Engine 6 | 3 3 Core . | . . Reactor . | . . Propulsion 9 | 5 4 Treads 2 | 2 . Leg 2 | 2 . Wheel 1 | 1 . Hover 4 | . 4 Flight . | . . Utility 7 | 3 4 Device 5 | 2 3 Storage 1 | 1 . Processor 1 | . 1 Hackware . | . . Protection . | . . Artifact . | . . Weapon 5 | 1 4 Energy Gun 2 | 1 1 Energy Cannon . | . . Ballistic Gun . | . . Ballistic Cannon . | . . Launcher . | . . Special Weapon 1 | . 1 Impact Weapon 2 | . 2 Slashing Weapon . | . . Piercing Weapon . | . . Special Melee Weapon . | . . Unidentified Prototypes . | . . Corrupted Parts 3 | 3 . System Corruption 6 | 6 . Parts Lost 7 | 7 . Power 2 | 2 . Propulsion 2 | 2 . Utility 1 | 1 . Weapon 2 | 2 . Highest Loss Streak 4 | 4 . To Critical Strikes . | . . Average Backups 3 | 3 4 Power . | . . Propulsion 1 | 1 . Utility . | . 2 Weapon . | . . Tool/Special . | . . Unused Backups 8 | 6 2 Power 1 | 1 . Propulsion 2 | 2 . Utility 3 | 1 2 Weapon 2 | 2 . Tool/Special . | . . Average Slot Usage (%) 77 | . 77 Engine 14 | . 14 Treads 6 | . 6 Hover 11 | . 11 Device 19 | . 19 Storage 2 | . 2 Processor 5 | . 5 Energy Gun 9 | . 9 Special Weapon 2 | . 2 Impact Weapon 4 | . 4 Peak Build Rating 11 | 9 11 Average Rating 7 | 7 6 On Entrance 6 | 6 7 Avg Prop Armor Cover (%) . | . . Naked Turns . | . . Heaviest Build 14 | 14 9 Greatest Support 40 | 40 20 Greatest Overweight (x) 1 | 1 . Average Overweight (x) . | . . Largest Inventory Capacity 8 | 8 5 Average Capacity 5 | 6 5 Most Carried 6 | 6 5 Average Carried 3 | 3 4 Final Capacity 5 | 5 5 Final Carried 5 | 2 5 Class Distribution -------------------- 100% | Mutant Dominant Class ---------------- Mutant | -10/Materials Resources | -11 -10 ----------- Run | Yrd Mat Matter Collected 576 | 426 150 Remotely . | . . Salvage Created 216 | 216 . Parts 18 | 18 . Haulers Intercepted . | . . Recyclers Shooed . | . . Parts Field Recycled . | . . Retrieved Matter . | . . Parts Self-Destructed . | . . Prevented . | . . Parts Restored . | . . Kills | -11 -10 ------- Run | Yrd Mat Combat Hostiles Destroyed 2 | 2 . Guns 2 | 2 . Classes Destroyed 4 | 4 . Worker 2 | 2 . Tunneler 6 | 6 . Recycler 1 | 1 . Assembled 2 | 2 . Best Kill Streak 3 | 3 . Combat Bots Only 2 | 2 . Max Kills in Single Turn 1 | 1 . Gunslinging . | . . Exploded . | . . Melee . | . . Uniques/NPCs Destroyed . | . . Combat | -11 -10 -------- Run | Yrd Mat Hostile Shots Fired 38 | 30 8 Missed 8 | 3 5 Hits 30 | 27 3 Melee 10 | 10 . Projectile 20 | 17 3 AOE 15 | 15 . Critical Strikes 2 | 2 . Damage Taken 901 | 867 34 Core 258 | 236 22 Absorbed by Shields . | . . Core Remaining (%) 5 | 5 . Volleys Fired 93 | 90 3 Largest 2 | 2 1 Hottest 100 | 60 100 Shots Fired 101 | 98 3 Gun 99 | 98 1 Cannon . | . . Launcher . | . . Special 2 | . 2 Kinetic 66 | 66 . Thermal 2 | . 2 Explosive . | . . Electromagnetic 33 | 32 1 Robot Hit Streak 14 | 14 4 Robot Miss Streak 4 | 4 . Penetration Max . | . . Secondary Targets . | . . Shots Hit Robots 43 | 42 1 Core Hits 17 | 17 . Critical Kills . | . . Critical Parts Destroyed . | . . Critical Strikes . | . . Melee Attacks . | . . Impact . | . . Slashing . | . . Piercing . | . . Sneak Attacks . | . . Combat Hostiles . | . . Follow-up Attacks . | . . Damage Inflicted 492 | 472 20 Guns 440 | 420 20 Cannons . | . . Explosions . | . . Melee . | . . Ramming 52 | 52 . Kinetic 180 | 180 . Thermal . | . . Explosive . | . . Electromagnetic 260 | 240 20 Impact . | . . Slashing . | . . Piercing . | . . Highest Corruption 14 | 14 14 Average Corruption 7 | 4 14 Corruption Purged . | . . Corruption Blocked . | . . Effects 29 | 15 14 Message Errors 6 | 4 2 Matter Fused 9 | 5 4 Heat Flow Errors 3 | 1 2 Energy Discharges 2 | . 2 Data Loss (minor) 5 | 2 3 Data Loss (major) 2 | 2 . Alerts 2 | 1 1 Overload Shots . | . . Overflow Damage . | . . Projectiles . | . . Explosions . | . . Melee . | . . Knockbacks . | . . Impact . | . . Kinetic . | . . Secondary . | . . Self-Inflicted Damage . | . . Shots . | . . Rammed 9 | 9 . Targets Rammed 26 | 26 . Kicked 15 | 15 . Crushed 2 | 2 . Highest Temperature 243 | 243 237 Average Temperature 65 | 45 95 Received Heat Transfer 18 | . 18 Siege Activations . | . . Martial Activations . | . . Shielding Activations . | . . Robots Disrupted . | . . Combat Hostiles . | . . Robots Corrupted . | . . Combat Hostiles . | . . Parts Fried 1 | 1 . Impact Corruptions . | . . Robots Melted . | . . Combat Hostiles . | . . Parts Melted . | . . Heat Transferred . | . . Parts Sabotaged . | . . Parts Stolen . | . . Parts Stripped . | . . Power Chain Reactions . | . . Alert | -11 -10 ------- Run | Yrd Mat Maximum Alert Level . | . . Low Security (%) 100 | 100 100 Level 1 . | . . Level 2 . | . . Level 3 . | . . Level 4 . | . . Level 5 . | . . High Security . | . . Max Security . | . . Peak Influence 80 | 5 80 Initial . | . . Average 4 | . 18 Influence Increases 206 | 45 161 Destroy 0b10 Robot/NC 45 | 45 . Successful Hack 26 | . 26 Disable Machine 15 | . 15 Lose Combat Pursuer 120 | . 120 Influence Decreases 136 | 45 91 Time Decay 136 | 45 91 Squads Dispatched 1 | . 1 Investigation 1 | . 1 Extermination . | . . Reinforcement . | . . Assault . | . . Garrison . | . . Intercept . | . . Searches Triggered . | . . Construction Impeded . | . . Haulers Reinforced . | . . Active Scanning Responses . | . . Cargo Convoy Interrupts . | . . Stealth | -11 -10 --------- Run | Yrd Mat Distress Signals 3 | . 3 Communications Jammed . | . . Distress Signals . | . . Times Spotted 23 | 7 16 Peak Tracking Total 6 | 2 6 Tactical Retreats 3 | . 3 Traps | -11 -10 ------- Run | Yrd Mat Traps Triggered . | . . Indirectly . | . . Trap Hack Attempts . | . . Triggered . | . . Disarmed . | . . Reprogrammed . | . . Reused . | . . Traps Extracted . | . . Installed . | . . Triggered . | . . Machines | -11 -10 ---------- Run | Yrd Mat Machines Disabled 1 | . 1 Max in Single Turn 1 | . 1 Machines Repaired . | . . Machines Dismantled . | . . Machines Sabotaged . | . . Overloaded Fab Kills . | . . Hacking | -11 -10 --------- Run | Yrd Mat Machines Accessed 4 | . 4 Terminals 3 | . 3 Fabricators . | . . Repair Stations . | . . Recycling Units 1 | . 1 Scanalyzers . | . . Garrison Access . | . . Total Hacks 10 | . 10 Successful 5 | . 5 Failed 5 | . 5 Catastrophic . | . . Database Lockouts . | . . Manual 1 | . 1 Terminals 7 | . 7 Fabricators . | . . Repair Stations . | . . Recycling Units 3 | . 3 Scanalyzers . | . . Garrison Access . | . . Terminal Hacks 3 | . 3 Record 1 | . 1 Alert Level 1 | . 1 Dispatch Records 1 | . 1 Fabricator Hacks . | . . Repair Station Hacks . | . . Recycling Unit Hacks 2 | . 2 Report Inventory 1 | . 1 Retrieve Components 1 | . 1 Scanalyzer . | . . Garrison Access Hacks . | . . Unauthorized Hacks . | . . Terminals . | . . Fabricators . | . . Repair Stations . | . . Recycling Units . | . . Scanalyzers . | . . Garrison Access . | . . Data Cores Recovered . | . . Used . | . . Hacking Detections 4 | . 4 Full Trace Events 3 | . 3 Feedback Events . | . . Feedback Blocked . | . . Robot Schematics Acquired . | . . Robots Built . | . . Authchips . | . . Time . | . . Total Robot Build Rating . | . . Part Schematics Acquired . | . . Parts Built . | . . Authchips . | . . Time . | . . Total Part Build Rating . | . . Part Studies Acquired . | . . Parts Repaired . | . . Time . | . . Parts Recycled . | . . Recycled Matter . | . . Retrieved Matter . | . . Retrieved Components 2 | . 2 Parts Scanalyzed . | . . Part Schematics Acquired . | . . Parts Damaged . | . . Bothacking | -11 -10 ------------ Run | Yrd Mat Used RIF Installer . | . . Robots Hacked . | . . Non-combat . | . . Combat . | . . Robot Hacks Applied . | . . Relay Couplers Released . | . . Fabnet Peak Effective % . | . . Robots Rewired . | . . Allies Hacked . | . . Hacks Repelled . | . . Allies | -11 -10 -------- Run | Yrd Mat Total Allies . | . . Largest Group . | . . Highest-Rated Group . | . . Highest-Rated Ally . | . . Total Orders . | . . Ally Attacks . | . . Total Damage . | . . Kills . | . . Allies Corrupted . | . . Allies Melted . | . . Intel | -11 -10 ------- Run | Yrd Mat Active Infowar (turns) 1141 | 809 332 Sensors 144 | . 144 Terrain 933 | 809 124 Structural 63 | . 63 Seismic 846 | 705 141 Robot Analysis Total . | . . Derelict Logs Recovered . | . . Drone Launches . | . . Drone Recoveries . | . . Exploration | -11 -10 ------------- Run | Yrd Mat Turns Passed 1574 | 1242 332 Spaces Moved 1031 | 720 311 Core 3 | 3 . Treads 225 | 145 80 Legs 572 | 572 . Wheels . | . . Hover 231 | . 231 Flight . | . . Fastest Speed 56 | 100 56 Average Speed 114 | 127 84 Slowest Speed 160 | 160 160 Overloaded Moves . | . . Propulsion Burnouts . | . . Robots Hopped . | . . Potential Cave-ins . | . . Cave-ins Triggered . | . . Exploration Rate (%) 45 | 30 60 Regions Visited 1 Branch Regions . Pre-discovered Areas . | . . Known Exits Taken . | . . Unknown Exits Taken 1 | 1 . Scrap Searched . | . . Spaces Dug . | . . Terrain Destroyed . | . . Melee . | . . Projectile . | . . AOE . | . . Terrain Rammed . | . . Walls Destroyed . | . . Machines Disabled . | . . Actions | -11 -10 --------- Run | Yrd Mat Total 1318 | 943 375 Wait 104 | 77 27 Move 1030 | 719 311 Hop . | . . Pick Up 12 | 6 6 Fast Attach 11 | 6 5 Attach 3 | 2 1 Detach 3 | . 3 Swap 18 | 9 9 Drop 18 | 8 10 Fire 93 | 90 3 Melee . | . . Ram . | . . Kick 15 | 15 . Crush 11 | 11 . Escape Stasis . | . . Rewire . | . . Trap . | . . Miscellaneous . | . . Route ------- -11/Scrapyard -10/Materials (discovered 1 exit: *Min) History --------- Turn | Location | Event 18 | -11/Scrapyard | Discovered new exit (range 1) 1085 | -11/Scrapyard | Assembled infested the area 1105 | -11/Scrapyard | Core integrity fell below 50% 1133 | -11/Scrapyard | Lost 4 parts (2p1n1w) 1169 | -11/Scrapyard | System corruption reached 10% 1177 | -11/Scrapyard | Core integrity fell below 20% 1217 | -11/Scrapyard | Lost 3 parts (1n1u1w) 1243 | -11/Scrapyard | Entered Materials 1244 | -10/Materials | Build established: Mutant 1244 | -10/Materials | Met a group of wandering Federalists 1484 | -10/Materials | Discovered new exit (range 13) 1490 | -10/Materials | Identified exit to Mines 1575 | -10/Materials | Destroyed by G-34 Mercenary with Small Laser Last Messages --------------- 01490_ Acquired 27 matter. 01490_ EXIT=IDENTIFIED: MINES 01498_ W-16 Scout sends out distress signal. 01503_ GVZ/LPPWXULZX1FBM1 YSGS 01509_ Dropped Med. Laser. 01510_ Dropped Hover Unit. 01514_ Acquired Mace. 01524_ Dropped Seismic Detector. 01524_ Acquired Lgt. Armor Plating. 01533_ System corrupted: IFF burst signal emitted. 01542_ K-01 Serf collects debris. 01549_ System corrupted: Heat flow error (+237). 01549_ Dropped Med. Matter Pod. 01550_ Extracted 92 matter. 01551_ K-01 Serf collects debris. 01553_ Acquired ECM Suite. 01555_ Acquired 31 matter. 01564_ R-06 Scavenger collects Med. Matter Pod. 01570_ System corrupted: Matter fused (-10). Map ----- +----------------------------------------------------+ | | | | | | | ?????????????????????????????????????????????????? | | ?????????????????????????????????????????????????? | | ?????????????????????????????????????????????????? | | ?????????????????????????????????????????????????? | | ?????????????????????????????????????????????????? | | ?????????????????????????????????????????????????? | | ?????????????????????????????????????????????????? | | ???????????????????????????? ????????????????????? | | ??????? ??????????????? ????????????????????? | | ???????#+####??????????????? ????????????????????? | | ??????? ##?????????????? #???????????????????? | | ???????? # ?????????????? #???????????????????? | | ??????? # ?????????????# #???????????????????? | | ???????## # ?????????????# #???????????????????? | | ???????## # ?????????????# #???????????????????? | | ???????## # ?????????????# #???????????????????? | | ???????## + ????????x????# #???????????????????? | | ######### ##????????#+???# #?########??????????? | | ## ###??????## ####g### #???????? ?? | | "" ## ###??????# ## """ #??????? ?? | | "Y= # ###! #### + """ #????##/###? | | ""[ # ##! % ## """ #??? ? | | + ##! @a ## #?## ? | | !! [# ##! g## ! + | | !![ # ##! [ ##/##### | | !![ ## ####! % g | | ## ####### k %% | | ######### ##????# r T = % | | ???????## ####### r !]! !|| ##?? | | ???????## ####### r ### ] !|| #??? | | ######### % ### ]! !|| +??? | | ######### ### #??? | | # ### #??? | | """"" # ############### g#########+#### ##??? | | ""T"" # # # """#???????????#???? | | + + # "#???????????????? | | """" # # " " # !"#???????????????? | | """" # # !! "T" # > ""#???????????????? | | """" # # ! """ # !"#???????????????? | | # # # "#???????????????? | | ######### ############## """#???????????????? | | ## # ############### ############???????? | | ?# + ###### ## ## #???????? | | ?# # + " ## ## #???????? | | ## # ###### """ ## ## ! #???????? | | #+###### ###### """ ## ## #???????? | | # #???###+####### """ # ##+##############+# | +----------------------------------------------------+ Best States ------------- Heat Dissipation 25 Energy Generation 10 Energy Capacity 250 Matter Stores 400 Matter Capacity 400 Sight Range 16 Robot Scan Range 14 Terrain Scan Range 16 Terrain Scan Density 10 Evasion (%) 55 Recoil Reduction 2 Item Schematics ----------------- None Robot Schematics ------------------ None Fabricated ------------ Nothing Repaired ---------- Nothing Studied --------- None Alien Tech Used ----------------- None Achievements -------------- A Problem For Future Me For Emergencies Only Challenges ------------ None Game ------ Seed EfficiencyDataProcessor Manual? 0 Play Time 01:15:36 Cumulative 89.6 hours Start 2025.11.11 @ 06:36:41 End 2025.11.12 @ 15:54:52 Sessions 2 Manual Loads 0 Difficulty Rogue Special Mode None Game No. 47 Rogue 47 Adventurer 0 Explorer 0 Win Type - Total 4 Types 4/0/0/0/0/0/0/0/0/0 Lore% 28 Gallery% 38 Achievement% 27 Wizard Run 0 Options --------- Layout 1 ASCII 0 Keyboard 0 Movement Numpad Keybinds 0 Fullscreen 2 Font 48/Smallcaps Map View 50x35 Zoom Use 0% Tactical HUD 1 Map Filters NONE Filters NONE Steam 1 RUN: 02f1c7dd-abe6-4062-8868-14b3135dd990